fUSD/lending_fUSD_20240517
["ID","MTS","AMOUNT","RATE_DAILY","PERIOD"]
[327271927,1715953847388,-2393.99,0.00012899,2]
[327271929,1715953847397,-1373.475077,0.000129,2]
[327271931,1715953847407,-8232.60720819,0.000129,2]
[327271933,1715953847417,-342.56709146,0.000129,2]
[327271936,1715953847427,-6777.26120681,0.000129,2]
[327271938,1715953847437,-5173.76119,0.00012931,2]
[327271940,1715953847447,-858.507705,0.00012931,2]
[327271942,1715953847457,-2183.639369,0.00012931,2]
[327271944,1715953847467,-169.616618,0.00012931,2]
[327271946,1715953847477,-154.757108,0.00012931,2]
[327271948,1715953847487,-2012.18,0.00012947,2]
[327271950,1715953847497,-500.0,0.00012947,2]
[327271952,1715953847507,-2743.76,0.00012947,2]
[327271954,1715953847517,-1232.58,0.00012947,2]
[327271956,1715953847528,-500.0,0.00012947,2]
[327271958,1715953847538,-9649.41224527,0.00012948,2]
[327271961,1715953847548,-155.0,0.00012948,2]
[327271963,1715953847558,-304.15399791,0.00012948,2]
[327271965,1715953847567,-206.54279872,0.00012948,2]
[327271967,1715953847577,-155.0,0.00012948,2]
[327271969,1715953847588,-159.62507899,0.00012948,2]
[327271971,1715953847598,-405.519977,0.00012948,2]
[327271973,1715953847609,-1318.95553579,0.00012948,2]
[327271975,1715953847622,-205.1152937,0.00012948,2]
[327271977,1715953847631,-155.50097248,0.00012948,2]
[327271979,1715953847642,-344.0450991,0.00012948,2]
[327271981,1715953847652,-782.7917937,0.00012948,2]
[327271983,1715953847663,-516.27787223,0.00012948,2]
[327271984,1715953847673,-2576.83533335,0.00012948,2]
[327271985,1715953847683,-362.64920396,0.00012948,2]
[327271986,1715953847697,-155.0,0.00012948,2]
[327271987,1715953847707,-155.0,0.00012948,2]
[327271988,1715953847718,-685.23241035,0.00012948,2]
[327271989,1715953847728,-409.03689151,0.00012948,2]
[327271990,1715953847738,-339.57491762,0.00012948,2]
[327271991,1715953847748,-158.77584422,0.00012948,2]
[327271992,1715953847758,-1378.02858088,0.00012948,2]
[327271993,1715953847769,-301.57584966,0.00012948,2]
[327271995,1715953847779,-488.3397664,0.00012948,2]
[327271997,1715953847789,-3057.79124914,0.00012948,2]
[327271999,1715953847799,-391.10109807,0.00012948,2]
[327272001,1715953847809,-155.0,0.00012948,2]
[327272003,1715953847819,-5557.31186524,0.00012948,2]
[327272005,1715953847830,-500.0,0.00012948,2]
[327272007,1715953847841,-155.45188947,0.00012948,2]
[327272009,1715953847851,-492.14409897,0.00012948,2]
[327272011,1715953847861,-3488.62355985,0.00012948,2]
[327272013,1715953847871,-535.13320909,0.00012948,2]
[327272015,1715953847881,-707.84680816,0.00012948,2]
[327272017,1715953847891,-155.35229815,0.00012948,2]
[327272020,1715953847902,-155.0,0.00012948,2]
[327272022,1715953847912,-155.25674088,0.00012948,2]
[327272024,1715953847922,-155.0,0.00012948,2]
[327272026,1715953847932,-155.23277733,0.00012948,2]
[327272028,1715953847942,-158.43092025,0.00012948,2]
[327272030,1715953847952,-155.0,0.00012948,2]
[327272032,1715953847962,-169.93921688,0.00012948,2]
[327272034,1715953847971,-1067.27,0.00012948,2]
[327272036,1715953847981,-1080.74,0.00012948,2]
[327272038,1715953847991,-706.12,0.00012948,2]
[327272040,1715953848001,-500.0,0.00012948,2]
[327272043,1715953848011,-771.79,0.00012948,2]
[327272045,1715953848021,-500.0,0.00012948,2]
[327272047,1715953848031,-500.0,0.00012948,2]
[327272049,1715953848041,-151.0,0.00012948,2]
[327272051,1715953848051,-268.649522,0.00012948,2]
[327272053,1715953848060,-268.649522,0.00012948,2]
[327272055,1715953848070,-151.0,0.00012948,2]
[327272057,1715953848080,-500.0,0.00012948,2]
[327272059,1715953848093,-151.0,0.00012948,2]
[327272062,1715953848103,-151.0,0.00012948,2]
[327272064,1715953848114,-528.55,0.00012948,2]
[327272066,1715953848124,-528.55,0.00012948,2]
[327272068,1715953848134,-528.55,0.00012948,2]
[327272070,1715953848145,-528.55,0.00012948,2]
[327272072,1715953848155,-528.73391778,0.00012948,2]
[327272074,1715953848165,-3775.57,0.00012948,2]
[327272076,1715953848176,-3775.57,0.00012948,2]
[327272078,1715953848186,-3775.57,0.00012948,2]
[327272080,1715953848195,-3775.57,0.00012948,2]
[327272082,1715953848206,-3775.72962856,0.00012948,2]
[327272085,1715953848215,-695.72,0.00012948,2]
[327272087,1715953848225,-695.72,0.00012948,2]
[327272089,1715953848235,-695.72,0.00012948,2]
[327272091,1715953848245,-695.72,0.00012948,2]
[327272093,1715953848254,-695.72698752,0.00012948,2]
[327272095,1715953848265,-904.36,0.00012948,2]
[327272097,1715953848275,-904.36,0.00012948,2]
[327272099,1715953848285,-904.36,0.00012948,2]
[327272101,1715953848294,-904.36,0.00012948,2]
[327272103,1715953848305,-904.37333785,0.00012948,2]
[327272105,1715953848315,-683.56,0.00012948,2]
[327272107,1715953848325,-783.32,0.00012948,2]
[327272109,1715953848335,-500.0,0.00012948,2]
[327272111,1715953848345,-952.09,0.00012948,2]
[327272114,1715953848356,-952.09,0.00012948,2]
[327272116,1715953848369,-576.86,0.00012948,2]
[327272118,1715953848382,-952.09,0.00012948,2]
[327272121,1715953848396,-576.86,0.00012948,2]
[327272123,1715953848409,-952.09,0.00012948,2]
[327272125,1715953848421,-576.86,0.00012948,2]
[327272128,1715953848431,-952.26529672,0.00012948,2]
[327272130,1715953848443,-576.86,0.00012948,2]
[327272132,1715953848455,-577.00443313,0.00012948,2]
[327272134,1715953848467,-440.49,0.00012948,2]
[327272137,1715953848479,-941.53,0.00012948,2]
[327272139,1715953848491,-674.19,0.00012948,2]
[327272142,1715953848504,-674.19,0.00012948,2]
[327272144,1715953848516,-674.19,0.00012948,2]
[327272146,1715953848529,-674.19,0.00012948,2]
[327272149,1715953848543,-674.35269026,0.00012948,2]
[327272151,1715953848555,-2393.99,0.00012948,2]
[327272154,1715953848568,-1067.27,0.00012949,2]
[327272156,1715953848581,-1067.27,0.00012949,2]
[327272158,1715953848593,-1067.27,0.00012949,2]
[327272160,1715953848604,-1067.27,0.00012949,2]
[327272163,1715953848622,-1080.74,0.00012949,2]
[327272165,1715953848634,-1080.74,0.00012949,2]
[327272167,1715953848645,-1080.74,0.00012949,2]
[327272170,1715953848659,-1080.74,0.00012949,2]
[327272172,1715953848669,-706.12,0.00012949,2]
[327272174,1715953848679,-706.12,0.00012949,2]
[327272176,1715953848693,-706.12,0.00012949,2]
[327272178,1715953848704,-706.12,0.00012949,2]
[327272180,1715953848716,-500.0,0.00012949,2]
[327272183,1715953848728,-170.68983947,0.00012949,2]
[327272185,1715953848741,-771.79,0.00012949,2]
[327272187,1715953848752,-771.79,0.00012949,2]
[327272190,1715953848765,-771.79,0.00012949,2]
[327272192,1715953848777,-771.79,0.00012949,2]
[327272194,1715953848790,-500.0,0.00012949,2]
[327272197,1715953848803,-500.0,0.00012949,2]
[327272199,1715953848813,-500.0,0.00012949,2]
[327272201,1715953848824,-500.0,0.00012949,2]
[327272203,1715953848835,-500.0,0.00012949,2]
[327272205,1715953848846,-500.0,0.00012949,2]
[327272207,1715953848858,-500.0,0.00012949,2]
[327272210,1715953848870,-500.0,0.00012949,2]
[327272212,1715953848882,-500.0,0.00012949,2]
[327272214,1715953848895,-500.0,0.00012949,2]
[327272216,1715953848905,-500.0,0.00012949,2]
[327272219,1715953848915,-490.97799999,0.00012949,2]
[327272221,1715953848926,-2012.18,0.00012949,2]
[327272223,1715953848937,-2012.18,0.00012949,2]
[327272225,1715953848950,-2012.18,0.00012949,2]
[327272228,1715953848962,-2012.18,0.00012949,2]
[327272230,1715953848972,-2012.18,0.00012949,2]
[327272232,1715953848983,-500.0,0.00012949,2]
[327272234,1715953848993,-500.0,0.00012949,2]
[327272236,1715953849004,-500.0,0.00012949,2]
[327272238,1715953849014,-500.0,0.00012949,2]
[327272240,1715953849025,-500.0,0.00012949,2]
[327272243,1715953849036,-683.56,0.00012949,2]
[327272245,1715953849048,-683.56,0.00012949,2]
[327272247,1715953849058,-683.56,0.00012949,2]
[327272249,1715953849068,-683.56,0.00012949,2]
[327272251,1715953849079,-683.56,0.00012949,2]
[327272253,1715953849089,-683.56,0.00012949,2]
[327272255,1715953849100,-683.56,0.00012949,2]
[327272257,1715953849111,-683.56,0.00012949,2]
[327272260,1715953849121,-683.74522105,0.00012949,2]
[327272262,1715953849132,-783.32,0.00012949,2]
[327272264,1715953849143,-783.32,0.00012949,2]
[327272266,1715953849154,-783.32,0.00012949,2]
[327272268,1715953849165,-783.32,0.00012949,2]
[327272271,1715953849176,-783.32,0.00012949,2]
[327272273,1715953849188,-783.32,0.00012949,2]
[327272275,1715953849199,-783.32,0.00012949,2]
[327272277,1715953849210,-783.32,0.00012949,2]
[327272279,1715953849221,-783.47,0.00012949,2]
[327272282,1715953849232,-500.0,0.00012949,2]
[327272284,1715953849242,-487.96739505,0.00012949,2]
[327272286,1715953849253,-941.53,0.00012949,2]
[327272288,1715953849263,-941.53,0.00012949,2]
[327272290,1715953849274,-941.53,0.00012949,2]
[327272292,1715953849285,-941.53,0.00012949,2]
[327272295,1715953849295,-941.53,0.00012949,2]
[327272297,1715953849306,-941.53,0.00012949,2]
[327272299,1715953849317,-941.53,0.00012949,2]
[327272301,1715953849327,-941.53,0.00012949,2]
[327272303,1715953849339,-941.67703565,0.00012949,2]
[327272305,1715953849350,-2743.76,0.00012949,2]
[327272308,1715953849361,-2743.76,0.00012949,2]
[327272310,1715953849372,-2743.76,0.00012949,2]
[327272312,1715953849383,-2743.76,0.00012949,2]
[327272314,1715953849394,-2743.76,0.00012949,2]
[327272316,1715953849405,-1232.58,0.00012949,2]
[327272319,1715953849416,-1232.58,0.00012949,2]
[327272321,1715953849426,-1232.58,0.00012949,2]
[327272323,1715953849437,-1232.58,0.00012949,2]
[327272325,1715953849449,-1232.58,0.00012949,2]
[327272327,1715953849459,-2393.99,0.00012949,2]
[327272329,1715953849470,-2393.99,0.00012949,2]
[327272332,1715953849481,-2393.99,0.00012949,2]
[327272334,1715953849491,-2393.99,0.00012949,2]
[327272336,1715953849502,-2393.99,0.00012949,2]
[327272338,1715953849513,-2393.99,0.00012949,2]
[327272340,1715953849523,-2393.99,0.00012949,2]
[327272342,1715953849534,-2393.99,0.00012949,2]
[327272345,1715953849545,-2394.08676107,0.00012949,2]
[327272347,1715953849557,-500.0,0.00012949,2]
[327272349,1715953849567,-500.0,0.00012949,2]
[327272351,1715953849579,-500.0,0.00012949,2]
[327272353,1715953849590,-500.0,0.00012949,2]
[327272355,1715953849601,-500.0,0.00012949,2]
[327272357,1715953849613,-959879.19086374,0.0001295,6]
[327272388,1715953849889,-46345.03032069,0.0001295,6]
[327272394,1715953849930,-574.12,0.00012328,2]
[327272396,1715953849941,-486.45175431,0.0001295,6]
[327272398,1715953849955,-2586.12488129,0.0001295,6]
[327272476,1715953850773,-266.947232,0.00011898,2]
[327272478,1715953850782,-266.947232,0.00011898,2]
[327272480,1715953850792,-158.615536,0.00011898,2]
[327272482,1715953850804,-108.331696,0.00011898,2]
[327272484,1715953850813,-266.947232,0.00012144,2]
[327272486,1715953850822,-574.12,0.00012328,2]
[327272488,1715953850831,-574.12,0.00012328,2]
[327272490,1715953850842,-574.12,0.00012328,2]
[327272492,1715953850851,-574.12,0.00012328,2]
[327272494,1715953850860,-574.12,0.00012328,2]
[327272496,1715953850869,-574.12,0.00012328,2]
[327272498,1715953850878,-151.0,0.00012328,2]
[327272500,1715953850888,-151.0,0.00012328,2]
[327272502,1715953850897,-266.947232,0.00012328,2]
[327272504,1715953850906,-266.947232,0.00012328,2]
[327272506,1715953850915,-574.12,0.00012521,2]
[327272508,1715953850923,-151.0,0.00012522,2]
[327272510,1715953850933,-500.0,0.0001261,2]
[327272512,1715953850941,-574.12,0.00012678,2]
[327272513,1715953850950,-574.12,0.00012678,2]
[327272516,1715953850960,-574.12,0.00012678,2]
[327272518,1715953850969,-500.0,0.00012679,2]
[327272520,1715953850978,-500.0,0.00012679,2]
[327272522,1715953850987,-500.0,0.00012679,2]
[327272524,1715953850997,-500.0,0.00012679,2]
[327272526,1715953851006,-500.0,0.00012679,2]
[327272528,1715953851015,-500.0,0.00012679,2]
[327272530,1715953851024,-574.12,0.00012679,2]
[327272532,1715953851033,-574.12,0.00012679,2]
[327272534,1715953851042,-574.12,0.00012679,2]
[327272536,1715953851051,-574.12,0.00012778,2]
[327272538,1715953851060,-500.0,0.00012779,2]
[327272540,1715953851069,-574.12,0.00012779,2]
[327272542,1715953851078,-574.12,0.00012779,2]
[327272544,1715953851087,-574.12,0.00012779,2]
[327272546,1715953851097,-574.12,0.00012779,2]
[327272548,1715953851106,-574.14009189,0.00012779,2]
[327272549,1715953851115,-500.0,0.00012947,2]
[327272551,1715953851124,-500.0,0.00012949,2]
[327272554,1715953851133,-500.0,0.00012949,2]
[327272555,1715953851142,-500.0,0.00012949,2]
[327272558,1715953851152,-500.0,0.00012949,2]
[327272560,1715953851161,-500.0,0.00012949,2]
[327272562,1715953851170,-224696.28664658,0.0001295,2]
[327272564,1715953851182,-342855.18637832,0.0001295,2]
[327272566,1715953851192,-85683.38476873,0.0001295,6]
[327272568,1715953851201,-31283.0816595,0.0001295,6]
[327272570,1715953851210,-151.0,0.0001295,2]
[327272572,1715953851219,-151.0,0.0001295,2]
[327272574,1715953851228,-268.649522,0.0001295,2]
[327272576,1715953851237,-268.649522,0.0001295,2]
[327272578,1715953851246,-151.0,0.0001295,2]
[327272580,1715953851255,-151.0,0.0001295,2]
[327272582,1715953851264,-151.0,0.0001295,2]
[327272584,1715953851273,-151.0,0.0001295,2]
[327272586,1715953851282,-151.0,0.0001295,2]
[327272588,1715953851291,-1067.27,0.00012978,2]
[327272590,1715953851300,-1080.74,0.00012978,2]
[327272592,1715953851309,-706.12,0.00012978,2]
[327272594,1715953851318,-771.79,0.00012978,2]
[327272596,1715953851327,-500.0,0.00012978,2]
[327272598,1715953851336,-500.0,0.00012978,2]
[327272600,1715953851346,-367.3543912,0.00012979,2]
[327272602,1715953851355,-5867.46418463,0.00012979,2]
[327272604,1715953851364,-207.92488696,0.00012979,2]
[327272606,1715953851374,-1067.27,0.00012979,2]
[327272608,1715953851385,-1080.74,0.00012979,2]
[327272610,1715953851394,-706.12,0.00012979,2]
[327272612,1715953851403,-500.0,0.00012979,2]
[327272614,1715953851412,-2012.18,0.00012979,2]
[327272616,1715953851422,-191.73868411,0.00012979,2]
[327272618,1715953851431,-2743.76,0.00012979,2]
[327272620,1715953851440,-1232.58,0.00012979,2]
[327272622,1715953851450,-510.5,0.00012979,2]
[327272624,1715953851459,-500.0,0.00012979,2]
[327272626,1715953851469,-67692.58947917,0.0001298,6]
[327272628,1715953851481,-2022.81688463,0.0001298,6]
[327272630,1715953851492,-821.3895,0.0001298,6]
[327272633,1715953851503,-2608.70054198,0.0001298,6]
[327272641,1715953851572,-266.947232,0.00012328,2]
[327272643,1715953851582,-266.947232,0.00012328,2]
[327272645,1715953851592,-200.81419764,0.00012522,2]
[327272647,1715953851604,-66.13303436,0.00012522,2]
[327272649,1715953851619,-4858.36626564,0.0001298,6]
[327272651,1715953851631,-6216.34526973,0.0001298,6]
[327272654,1715953851642,-706.90926432,0.0001298,6]
[327272656,1715953851653,-1089.58281505,0.0001298,6]
[327272679,1715953851859,-500.0,0.00012328,2]
[327272681,1715953851868,-266.947232,0.00012579,2]
[327272683,1715953851878,-142.75339757,0.0001298,6]
[327272685,1715953851889,-42752.08752788,0.0001298,6]
[327272687,1715953851899,-198.65577911,0.0001298,2]
[327272689,1715953851909,-160.69481344,0.0001298,2]
[327272691,1715953851918,-1377.29078847,0.0001298,2]
[327272693,1715953851928,-198.10115353,0.0001298,2]
[327272695,1715953851937,-151.0,0.0001298,2]
[327272697,1715953851947,-151.0,0.0001298,2]
[327272699,1715953851957,-268.649522,0.0001298,2]
[327272701,1715953851966,-268.649522,0.0001298,2]
[327272703,1715953851975,-151.0,0.0001298,2]
[327272705,1715953851984,-151.0,0.0001298,2]
[327272707,1715953851994,-151.0,0.0001298,2]
[327272709,1715953852003,-1428.0441905,0.00012981,2]
[327272711,1715953852013,-26322.6959107,0.00012981,2]
[327272713,1715953852023,-1259.7680325,0.00012981,2]
[327272715,1715953852032,-7596.7655136,0.00012981,2]
[327272717,1715953852041,-834.780525,0.00012981,2]
[327272719,1715953852050,-3484.0327837,0.00012981,2]
[327272721,1715953852059,-4791.13137169,0.0001299,3]
[327272723,1715953852069,-771.79,0.0001299,2]
[327272725,1715953852078,-500.0,0.0001299,2]
[327272727,1715953852087,-2012.18,0.0001299,2]
[327272729,1715953852097,-2743.76,0.0001299,2]
[327272731,1715953852107,-1232.58,0.0001299,2]
[327272733,1715953852117,-500.0,0.0001299,2]
[327272735,1715953852127,-151.0,0.00012991,2]
[327272737,1715953852136,-1205.896226,0.00012991,2]
[327272740,1715953852146,-983.7482615,0.00012991,2]
[327272742,1715953852156,-761.6002969,0.00012991,2]
[327272744,1715953852165,-539.4523324,0.00012991,2]
[327272745,1715953852174,-317.3043679,0.00012991,2]
[327272748,1715953852184,-151.0,0.00012991,2]
[327272750,1715953852193,-268.649522,0.00012991,2]
[327272752,1715953852203,-268.649522,0.00012991,2]
[327272753,1715953852212,-151.0,0.00012991,2]
[327272756,1715953852221,-27677.453172,0.00012991,2]
[327272758,1715953852230,-29032.2104333,0.00012991,2]
[327272760,1715953852239,-30386.9676946,0.00012991,2]
[327272761,1715953852249,-31741.7249559,0.00012991,2]
[327272764,1715953852258,-33096.4822173,0.00012991,2]
[327272766,1715953852267,-1300.6253741,0.00012991,2]
[327272767,1715953852276,-1341.4827157,0.00012991,2]
[327272770,1715953852286,-1382.3400572,0.00012991,2]
[327272771,1715953852296,-1423.1973988,0.00012991,2]
[327272774,1715953852305,-1464.0547404,0.00012991,2]
[327272776,1715953852315,-7843.1470978,0.00012991,2]
[327272778,1715953852324,-8089.5286821,0.00012991,2]
[327272780,1715953852334,-8335.9102663,0.00012991,2]
[327272781,1715953852343,-8582.2918505,0.00012991,2]
[327272784,1715953852352,-8828.6734347,0.00012991,2]
[327272786,1715953852363,-861.8544879,0.00012991,2]
[327272788,1715953852373,-888.9284509,0.00012991,2]
[327272790,1715953852382,-916.0024139,0.00012991,2]
[327272792,1715953852392,-943.0763769,0.00012991,2]
[327272794,1715953852401,-970.1503398,0.00012991,2]
[327272796,1715953852410,-3594.1023564,0.00012991,2]
[327272798,1715953852419,-3704.171929,0.00012991,2]
[327272800,1715953852429,-3814.2415016,0.00012991,2]
[327272802,1715953852438,-3924.3110742,0.00012991,2]
[327272804,1715953852447,-4034.3806469,0.00012991,2]
[327272806,1715953852456,-255.33014496,0.00012995,2]
[327272808,1715953852465,-178.82885574,0.00012995,2]
[327272810,1715953852474,-681.08375958,0.00012996,2]
[327272812,1715953852484,-1067.27,0.00012996,2]
[327272814,1715953852493,-1067.27,0.00012996,2]
[327272816,1715953852504,-1080.74,0.00012996,2]
[327272818,1715953852513,-1080.74,0.00012996,2]
[327272820,1715953852523,-706.12,0.00012996,2]
[327272822,1715953852532,-706.12,0.00012996,2]
[327272824,1715953852541,-500.0,0.00012996,2]
[327272826,1715953852550,-500.0,0.00012996,2]
[327272828,1715953852560,-1067.27,0.00012997,2]
[327272830,1715953852569,-1080.74,0.00012997,2]
[327272832,1715953852578,-706.12,0.00012997,2]
[327272834,1715953852587,-771.79,0.00012997,2]
[327272836,1715953852597,-771.79,0.00012997,2]
[327272838,1715953852606,-315.95762192,0.00012997,2]
[327272840,1715953852620,-500.0,0.00012997,2]
[327272842,1715953852629,-1481.03106999,0.00012998,2]
[327272844,1715953852638,-151.0,0.00012998,2]
[327272846,1715953852647,-1067.27,0.00012998,2]
[327272848,1715953852656,-1080.74,0.00012998,2]
[327272850,1715953852665,-706.12,0.00012998,2]
[327272852,1715953852675,-771.79,0.00012998,2]
[327272854,1715953852684,-500.0,0.00012998,2]
[327272856,1715953852696,-2012.18,0.00012998,2]
[327272858,1715953852706,-2012.18,0.00012998,2]
[327272860,1715953852715,-2012.18,0.00012998,2]
[327272862,1715953852725,-2012.18,0.00012998,2]
[327272864,1715953852734,-2012.29734635,0.00012998,2]
[327272866,1715953852744,-2743.76,0.00012998,2]
[327272868,1715953852754,-2743.76,0.00012998,2]
[327272870,1715953852763,-2743.76,0.00012998,2]
[327272872,1715953852772,-2743.76,0.00012998,2]
[327272873,1715953852781,-2743.869,0.00012998,2]
[327272874,1715953852790,-1232.58,0.00012998,2]
[327272875,1715953852799,-1232.58,0.00012998,2]
[327272876,1715953852809,-1232.58,0.00012998,2]
[327272877,1715953852818,-1232.58,0.00012998,2]
[327272878,1715953852827,-1232.65590376,0.00012998,2]
[327272879,1715953852837,-500.0,0.00012998,2]
[327272880,1715953852848,-500.0,0.00012998,2]
[327272881,1715953852857,-500.0,0.00012998,2]
[327272882,1715953852866,-200.96636718,0.00012998,2]
[327272884,1715953852876,-5905.4250246,0.00012999,7]
[327272886,1715953852885,-151.0,0.00012999,2]
[327272888,1715953852891,-99964.42178586,0.00012999,2]
[327272889,1715953852898,-1067.27,0.00012999,2]
[327272892,1715953852907,-1067.27,0.00012999,2]
[327272894,1715953852915,-1067.27,0.00012999,2]
[327272896,1715953852924,-1067.27,0.00012999,2]
[327272898,1715953852934,-1067.27,0.00012999,2]
[327272900,1715953852943,-1067.27,0.00012999,2]
[327272902,1715953852952,-1067.27,0.00012999,2]
[327272904,1715953852962,-1067.47222212,0.00012999,2]
[327272905,1715953852971,-1080.74,0.00012999,2]
[327272907,1715953852981,-1080.74,0.00012999,2]
[327272910,1715953852990,-1080.74,0.00012999,2]
[327272911,1715953852999,-1080.74,0.00012999,2]
[327272914,1715953853008,-1080.74,0.00012999,2]
[327272915,1715953853018,-1080.74,0.00012999,2]
[327272917,1715953853027,-1080.74,0.00012999,2]
[327272919,1715953853036,-1080.95040765,0.00012999,2]
[327272922,1715953853045,-706.12,0.00012999,2]
[327272924,1715953853055,-706.12,0.00012999,2]
[327272926,1715953853064,-706.12,0.00012999,2]
[327272927,1715953853074,-706.12,0.00012999,2]
[327272929,1715953853083,-706.12,0.00012999,2]
[327272931,1715953853092,-706.12,0.00012999,2]
[327272934,1715953853102,-706.12,0.00012999,2]
[327272935,1715953853111,-706.21281613,0.00012999,2]
[327272938,1715953853120,-771.79,0.00012999,2]
[327272939,1715953853130,-771.79,0.00012999,2]
[327272941,1715953853139,-771.79,0.00012999,2]
[327272944,1715953853150,-771.79,0.00012999,2]
[327272945,1715953853160,-771.79,0.00012999,2]
[327272947,1715953853170,-771.79,0.00012999,2]
[327272950,1715953853180,-771.79,0.00012999,2]
[327272951,1715953853189,-771.79,0.00012999,2]
[327272953,1715953853198,-771.99932746,0.00012999,2]
[327272956,1715953853208,-500.0,0.00012999,2]
[327272958,1715953853217,-500.0,0.00012999,2]
[327272960,1715953853227,-500.0,0.00012999,2]
[327272962,1715953853237,-500.0,0.00012999,2]
[327272963,1715953853246,-500.0,0.00012999,2]
[327272966,1715953853256,-500.0,0.00012999,2]
[327272967,1715953853266,-283.31129803,0.00012999,2]
[327272969,1715953853274,-151.0,0.00012999,2]
[327272971,1715953853284,-151.0,0.00012999,2]
[327272973,1715953853293,-268.649522,0.00012999,2]
[327272975,1715953853302,-268.649522,0.00012999,2]
[327272977,1715953853312,-268.649522,0.00012999,2]
[327272979,1715953853321,-268.649518,0.00012999,2]
[327272981,1715953853331,-151.0,0.00012999,2]
[327272984,1715953853342,-151.0,0.00012999,2]
[327272986,1715953853352,-1632569.23962572,0.00013,2]
[327272988,1715953853361,-1102874.00802103,0.00013,2]
[327272990,1715953853378,-724.36043818,0.00013,2]
[327272993,1715953853391,-324.43169441,0.00013,2]
[327272995,1715953853403,-3250.0,0.00013,2]
[327272997,1715953853414,-9703.64474437,0.00013,2]
[327272999,1715953853424,-1906.93647508,0.00013,2]
[327273002,1715953853436,-2654.8,0.00013,2]
[327273005,1715953853454,-500.0,0.00012328,2]
[327273007,1715953853463,-8143.67207993,0.00013,2]
[327273009,1715953853475,-589.56767004,0.00013,2]
[327273011,1715953853485,-399.31545818,0.00013,2]
[327273013,1715953853496,-968.54252082,0.00013,2]
[327273015,1715953853507,-8602.07963177,0.00013,2]
[327273018,1715953853518,-46318.75072632,0.00013,2]
[327273020,1715953853529,-8718.88764493,0.00013,2]
[327273022,1715953853540,-29028.315582,0.00013,2]
[327273062,1715953853909,-266.947232,0.00011898,2]
[327273064,1715953853918,-35.937328,0.00011898,2]
[327273066,1715953853929,-231.009904,0.00011898,2]
[327273068,1715953853939,-224.94488588,0.00011898,2]
[327273070,1715953853950,-42.00234612,0.00011898,2]
[327273072,1715953853959,-210.34817337,0.00012276,2]
[327273075,1715953853970,-478.51803556,0.00012276,2]
[327273077,1715953853980,-500.0,0.00012328,2]
[327273079,1715953853990,-500.0,0.00012328,2]
[327273081,1715953853999,-500.0,0.00012328,2]
[327273083,1715953854008,-500.0,0.00012328,2]
[327273085,1715953854017,-425.4,0.00012328,2]
[327273087,1715953854027,-500.0,0.00012328,2]
[327273089,1715953854036,-500.0,0.00012328,2]
[327273091,1715953854046,-266.947232,0.00012328,2]
[327273093,1715953854055,-500.0,0.00012328,2]
[327273095,1715953854064,-266.947232,0.00012328,2]
[327273097,1715953854073,-500.0,0.00012328,2]
[327273099,1715953854082,-500.0,0.00012328,2]
[327273101,1715953854091,-500.0,0.00012328,2]
[327273103,1715953854101,-314.88,0.00012328,2]
[327273105,1715953854111,-6391663.65371242,0.00013,2]
[327273110,1715953854145,-266.947232,0.00012144,2]
[327273112,1715953854154,-371.69980115,0.00013,2]
[327273114,1715953854165,-6626.1,0.00013,2]
[327273133,1715953854329,-643.21413352,0.00011897,2]
[327273135,1715953854339,-202.55,0.00012328,2]
[327273137,1715953854349,-266.947232,0.00012328,2]